{"text_format":"1","workbook":"xlsx","n_sheets":1,"sheets":["非契約請求書"],"not_rendered":{"charts":0,"images":1,"macros":1,"external_links":0,"defined_names":2,"comments":1,"pivot_tables":0},"unopened":[],"bounds":{"document_bytes":16777216,"sheet_cells":100000,"rows_first":2000,"rows_last":500,"rows_between":2000,"halvings":0,"cell_chars":16384,"cell_head_chars":4096},"cells_cut":0,"cells_raw":0,"read":"whole","date_system":"1900"}

{"sheet":"非契約請求書","index":0,"n_rows":92,"n_cols":92,"rows_kept":92,"cut":false,"hidden":false,"merged":[[0,16,0,70],[1,28,1,37],[2,17,4,18],[2,19,4,44],[3,56,3,58],[3,59,3,68],[5,17,7,18],[5,19,7,32],[5,33,7,38],[5,39,7,44],[7,45,8,47],[8,17,10,44],[10,45,11,47],[5,48,5,68],[7,48,8,68],[10,48,11,68],[17,17,19,26],[17,27,19,44],[18,45,18,47],[11,17,13,44],[12,45,12,47],[14,17,16,44],[14,45,14,47],[16,45,16,47],[14,65,14,68],[12,48,12,68],[16,48,16,54],[18,48,18,54],[16,55,16,56],[18,55,18,56],[16,57,16,60],[14,48,14,60],[14,61,14,64],[16,61,16,64],[18,57,18,68],[16,65,16,68],[21,17,21,18],[21,19,21,42],[21,43,21,46],[21,47,21,51],[21,52,21,55],[21,56,21,61],[23,19,23,42],[23,43,23,46],[23,47,23,51],[23,52,23,55],[23,56,23,61],[23,62,23,69],[21,62,21,69],[22,19,22,42],[22,43,22,46],[22,47,22,51],[22,52,22,55],[22,56,22,61],[22,62,22,69],[25,19,25,42],[25,43,25,46],[25,47,25,51],[25,52,25,55],[25,56,25,61],[25,62,25,69],[24,19,24,42],[24,43,24,46],[24,47,24,51],[24,52,24,55],[24,56,24,61],[24,62,24,69],[27,19,27,42],[27,43,27,46],[27,47,27,51],[27,52,27,55],[27,56,27,61],[27,62,27,69],[26,19,26,42],[26,43,26,46],[26,47,26,51],[26,52,26,55],[26,56,26,61],[26,62,26,69],[29,43,29,55],[29,56,29,61],[29,62,29,69],[30,43,30,55],[30,56,30,61],[30,62,30,69],[28,19,28,42],[28,43,28,46],[28,47,28,51],[28,52,28,55],[28,56,28,61],[28,62,28,69],[32,16,32,69],[34,18,34,21],[34,23,34,25],[34,47,34,55],[34,61,34,62],[36,18,36,21],[36,23,36,25],[36,47,36,55],[31,17,31,31],[31,32,31,34],[31,35,31,42],[31,43,31,55],[31,56,31,61],[31,62,31,69],[41,17,41,21],[41,22,41,38],[41,39,41,44],[41,48,41,59],[41,60,41,62],[41,63,41,69],[38,38,38,39],[38,47,38,55],[38,61,38,62],[38,63,38,64],[38,65,38,67],[40,17,40,21],[40,22,40,38],[40,39,40,44],[40,45,41,47],[40,48,40,69],[38,18,38,21],[38,23,38,25],[38,26,38,27],[38,28,38,31],[38,33,38,34],[38,35,38,37],[42,61,42,62],[42,63,42,64],[42,65,42,67],[43,22,43,23],[43,24,43,26],[43,27,43,29],[43,30,43,32],[43,33,43,35],[43,36,43,38],[42,22,42,38],[42,39,42,44],[42,45,42,47],[42,48,42,49],[43,39,43,40],[43,45,43,47],[43,48,43,49],[43,50,43,52],[43,60,43,62],[43,63,43,69],[44,16,45,16],[44,17,44,21],[44,22,44,38],[44,39,44,44],[44,45,44,47],[44,48,44,49],[44,50,44,52],[42,16,43,16],[42,17,42,21],[42,50,42,52],[44,61,44,62],[44,63,44,64],[44,65,44,67],[45,22,45,23],[45,24,45,26],[45,27,45,29],[45,30,45,32],[45,33,45,35],[45,36,45,38],[45,39,45,40],[45,45,45,47],[45,48,45,49],[45,50,45,52],[45,60,45,62],[45,63,45,69],[46,16,47,16],[46,17,46,21],[46,22,46,38],[46,39,46,44],[46,45,46,47],[46,48,46,49],[46,50,46,52],[46,61,46,62],[46,63,46,64],[46,65,46,67],[47,22,47,23],[47,24,47,26],[47,27,47,29],[47,30,47,32],[47,33,47,35],[47,63,47,69],[48,16,49,16],[48,17,48,21],[48,22,48,38],[48,39,48,44],[48,45,48,47],[48,48,48,49],[48,50,48,52],[48,61,48,62],[48,63,48,64],[47,36,47,38],[47,39,47,40],[47,45,47,47],[47,48,47,49],[47,50,47,52],[47,60,47,62],[48,65,48,67],[49,22,49,23],[49,24,49,26],[49,27,49,29],[49,30,49,32],[49,33,49,35],[49,36,49,38],[49,39,49,40],[49,45,49,47],[49,48,49,49],[49,50,49,52],[49,60,49,62],[49,63,49,69],[50,16,51,16],[50,17,50,21],[50,22,50,38],[50,39,50,44],[50,45,50,47],[50,48,50,49],[50,50,50,52],[50,61,50,62],[50,63,50,64],[50,65,50,67],[51,22,51,23],[51,24,51,26],[51,27,51,29],[51,30,51,32],[51,33,51,35],[51,36,51,38],[51,39,51,40],[51,45,51,47],[51,48,51,49],[51,50,51,52],[51,60,51,62],[51,63,51,69],[52,16,53,16],[52,17,52,21],[52,22,52,38],[52,39,52,44],[52,45,52,47],[52,48,52,49],[52,50,52,52],[52,61,52,62],[52,63,52,64],[52,65,52,67],[53,22,53,23],[53,24,53,26],[53,27,53,29],[53,30,53,32],[53,33,53,35],[55,65,56,66],[55,67,56,69],[53,63,53,69],[53,36,53,38],[53,39,53,40],[53,45,53,47],[53,48,53,49],[53,50,53,52],[53,60,53,62],[60,17,60,18],[60,19,60,42],[60,43,60,46],[60,47,60,51],[60,52,60,55],[60,56,60,61],[55,45,56,45],[55,46,56,48],[55,51,56,52],[55,53,56,64],[55,17,55,21],[55,23,55,25],[55,26,55,27],[55,28,55,31],[55,32,55,33],[55,34,55,36],[55,37,55,38],[55,41,56,41],[55,42,56,44],[58,16,58,70],[59,28,59,37],[56,17,56,21],[62,19,62,42],[62,43,62,46],[62,47,62,51],[62,52,62,55],[62,56,62,61],[62,62,62,69],[60,62,60,69],[61,19,61,42],[61,43,61,46],[61,47,61,51],[61,52,61,55],[61,56,61,61],[61,62,61,69],[64,19,64,42],[64,43,64,46],[64,47,64,51],[64,52,64,55],[64,56,64,61],[64,62,64,69],[63,19,63,42],[63,43,63,46],[63,47,63,51],[63,52,63,55],[63,56,63,61],[63,62,63,69],[66,19,66,42],[66,43,66,46],[66,47,66,51],[66,52,66,55],[66,56,66,61],[66,62,66,69],[65,19,65,42],[65,43,65,46],[65,47,65,51],[65,52,65,55],[65,56,65,61],[65,62,65,69],[68,19,68,42],[68,43,68,46],[68,47,68,51],[68,52,68,55],[68,56,68,61],[68,62,68,69],[67,19,67,42],[67,43,67,46],[67,47,67,51],[67,52,67,55],[67,56,67,61],[67,62,67,69],[70,19,70,42],[70,43,70,46],[70,47,70,51],[70,52,70,55],[70,56,70,61],[70,62,70,69],[69,19,69,42],[69,43,69,46],[69,47,69,51],[69,52,69,55],[69,56,69,61],[69,62,69,69],[72,19,72,42],[72,43,72,46],[72,47,72,51],[72,52,72,55],[72,56,72,61],[72,62,72,69],[71,19,71,42],[71,43,71,46],[71,47,71,51],[71,52,71,55],[71,56,71,61],[71,62,71,69],[74,19,74,42],[74,43,74,46],[74,47,74,51],[74,52,74,55],[74,56,74,61],[74,62,74,69],[73,19,73,42],[73,43,73,46],[73,47,73,51],[73,52,73,55],[73,56,73,61],[73,62,73,69],[76,19,76,42],[76,43,76,46],[76,47,76,51],[76,52,76,55],[76,56,76,61],[76,62,76,69],[75,19,75,42],[75,43,75,46],[75,47,75,51],[75,52,75,55],[75,56,75,61],[75,62,75,69],[78,19,78,42],[78,43,78,46],[78,47,78,51],[78,52,78,55],[78,56,78,61],[78,62,78,69],[77,19,77,42],[77,43,77,46],[77,47,77,51],[77,52,77,55],[77,56,77,61],[77,62,77,69],[80,19,80,42],[80,43,80,46],[80,47,80,51],[80,52,80,55],[80,56,80,61],[80,62,80,69],[79,19,79,42],[79,43,79,46],[79,47,79,51],[79,52,79,55],[79,56,79,61],[79,62,79,69],[82,19,82,42],[82,43,82,46],[82,47,82,51],[82,52,82,55],[82,56,82,61],[82,62,82,69],[81,19,81,42],[81,43,81,46],[81,47,81,51],[81,52,81,55],[81,56,81,61],[81,62,81,69],[84,19,84,42],[84,43,84,46],[84,47,84,51],[84,52,84,55],[84,56,84,61],[84,62,84,69],[83,19,83,42],[83,43,83,46],[83,47,83,51],[83,52,83,55],[83,56,83,61],[83,62,83,69],[88,19,88,42],[88,43,88,46],[88,47,88,51],[88,52,88,55],[88,56,88,61],[88,62,88,69],[87,19,87,42],[87,43,87,46],[87,47,87,51],[87,52,87,55],[87,56,87,61],[87,62,87,69],[86,19,86,42],[86,43,86,46],[86,47,86,51],[86,52,86,55],[86,56,86,61],[86,62,86,69],[85,19,85,42],[85,43,85,46],[85,47,85,51],[85,52,85,55],[85,56,85,61],[85,62,85,69],[91,17,91,31],[91,32,91,34],[91,35,91,42],[91,43,91,55],[91,56,91,61],[91,62,91,69],[89,43,89,55],[89,56,89,61],[89,62,89,69],[90,43,90,55],[90,56,90,61],[90,62,90,69]]}
[null,null,null,null,null,null,null,null,null,null,null,null,null,null,null,null,"請　求　書　（非 契 約 用）"]
[null,null,null,null,null,null,null,null,null,null,null,null,null,null,null,null,null,null,null,null,null,null,null,null,null,null,null,null,"　御 中"]
[null,null,null,null,null,null,null,null,null,null,null,null,null,null,null,null,null,"工事名称"]
[null,null,null,null,null,null,null,null,null,null,null,null,null,null,null,null,null,null,null,null,null,null,null,null,null,null,null,null,null,null,null,null,null,null,null,null,null,null,null,null,null,null,null,null,null,null,null,null,null,null,null,null,null,null,null,null,"請求日",null,null,null,null,null,null,null,null,null,null,null,null,null,null,null,null,null,null,null,null,null,null,null,null,null,null,null,null,null,null,null,null,null,null,"\n        , AllowFormattingCells:=True"]
[]
[null,null,null,null,null,null,null,null,null,null,null,null,null,null,null,null,null,"取 引 先\nコ ー ド",null,null,null,null,null,null,null,null,null,null,null,null,null,null,null,"請求\n番号",null,null,null,null,null,null,null,null,null,null,null,null,null,"〒"]
[]
[null,null,null,null,null,null,null,null,null,null,null,null,null,null,null,null,null,null,null,null,null,null,null,null,null,null,null,null,null,null,null,null,null,null,null,null,null,null,null,null,null,null,null,null,null,"所 在 地"]
[null,null,null,null,null,null,null,null,null,null,null,null,null,null,null,null,null,"佐伯建設担当者（部課名）"]
[]
[null,null,null,null,null,null,null,null,null,null,null,null,null,null,null,null,null,null,null,null,null,null,null,null,null,null,null,null,null,null,null,null,null,null,null,null,null,null,null,null,null,null,null,null,null,"会 社 名"]
[]
[null,null,null,null,null,null,null,null,null,null,null,null,null,null,null,null,null,null,null,null,null,null,null,null,null,null,null,null,null,null,null,null,null,null,null,null,null,null,null,null,null,null,null,null,null,"代表者名"]
[]
[null,null,null,null,null,null,null,null,null,null,null,null,null,null,null,null,null,null,null,null,null,null,null,null,null,null,null,null,null,null,null,null,null,null,null,null,null,null,null,null,null,null,null,null,null,"T　E　L",null,null,null,null,null,null,null,null,null,null,null,null,null,null,null,"担当者（",null,null,null,null,null,null,null,"）"]
[]
[null,null,null,null,null,null,null,null,null,null,null,null,null,null,null,null,null,null,null,null,null,null,null,null,null,null,null,null,null,null,null,null,null,null,null,null,null,null,null,null,null,null,null,null,null,"振込銀行名",null,null,null,null,null,null,null,null,null,"支店名",null,null,null,null,null,"種別"]
[null,null,null,null,null,null,null,null,null,null,null,null,null,null,null,null,null,"請 求 金 額 (税 込)",null,null,null,null,null,null,null,null,null,{"$f":"IF(BE92=\"\",IF(BE32=0,\"\",BE32),IF(BE92=0,\"\",BE92))","v":""}]
[null,null,null,null,null,null,null,null,null,null,null,null,null,null,null,null,null,null,null,null,null,null,null,null,null,null,null,null,null,null,null,null,null,null,null,null,null,null,null,null,null,null,null,null,null,"口座番号",null,null,null,null,null,null,null,null,null,"口座名義"]
[]
[]
[null,null,null,null,null,null,null,null,null,null,null,null,null,null,null,null,null,"月 日",null,"品 名 又 は 摘 要",null,null,null,null,null,null,null,null,null,null,null,null,null,null,null,null,null,null,null,null,null,null,null,"数 量",null,null,null,"単位",null,null,null,null,"単 価",null,null,null,"金額（税抜）",null,null,null,null,null,"消費税率"]
[null,null,null,null,null,null,null,null,null,null,null,null,null,null,null,null,null,null,null,null,null,null,null,null,null,null,null,null,null,null,null,null,null,null,null,null,null,null,null,null,null,null,null,null,null,null,null,null,null,null,null,null,null,null,null,null,{"$f":"IFERROR(IF(AR23*BA23=0,\"\",ROUNDDOWN(AR23*BA23,0)),\"\")","v":""},null,null,null,null,null,null,null,null,null,null,null,null,null,null,null,null,"本体価格計",{"$f":"SUM(BE23:BJ29)","v":0}]
[null,null,null,null,null,null,null,null,null,null,null,null,null,null,null,null,null,null,null,null,null,null,null,null,null,null,null,null,null,null,null,null,null,null,null,null,null,null,null,null,null,null,null,null,null,null,null,null,null,null,null,null,null,null,null,null,{"$f":"IFERROR(IF(AR24*BA24=0,\"\",ROUNDDOWN(AR24*BA24,0)),\"\")","v":""},null,null,null,null,null,null,null,null,null,null,null,null,null,null,null,null,"非課税計",{"$f":"SUMIF(BK23:BR29,\"非課税\",BE23:BJ29)","v":0}]
[null,null,null,null,null,null,null,null,null,null,null,null,null,null,null,null,null,null,null,null,null,null,null,null,null,null,null,null,null,null,null,null,null,null,null,null,null,null,null,null,null,null,null,null,null,null,null,null,null,null,null,null,null,null,null,null,"",null,null,null,null,null,null,null,null,null,null,null,null,null,null,null,null,"8％計",{"$f":"SUMIF(BK23:BS29,\"軽減8%\",BE23:BJ29)","v":0}]
[null,null,null,null,null,null,null,null,null,null,null,null,null,null,null,null,null,null,null,null,null,null,null,null,null,null,null,null,null,null,null,null,null,null,null,null,null,null,null,null,null,null,null,null,null,null,null,null,null,null,null,null,null,null,null,null,"",null,null,null,null,null,null,null,null,null,null,null,null,null,null,null,null,"10％計",{"$f":"SUMIF(BK23:BR29,\"10%\",BE23:BJ29)+SUMIF(BK23:BR29,\"\",BE23:BJ29)","v":0}]
[null,null,null,null,null,null,null,null,null,null,null,null,null,null,null,null,null,null,null,null,null,null,null,null,null,null,null,null,null,null,null,null,null,null,null,null,null,null,null,null,null,null,null,null,null,null,null,null,null,null,null,null,null,null,null,null,"",null,null,null,null,null,null,null,null,null,null,null,null,null,null,null,null,"消費税計",{"$f":"ROUNDDOWN(BW25*0.08,0)+ROUNDDOWN(BW26*0.1,0)+BW24*0","v":0}]
[null,null,null,null,null,null,null,null,null,null,null,null,null,null,null,null,null,null,null,null,null,null,null,null,null,null,null,null,null,null,null,null,null,null,null,null,null,null,null,null,null,null,null,null,null,null,null,null,null,null,null,null,null,null,null,null,""]
[null,null,null,null,null,null,null,null,null,null,null,null,null,null,null,null,null,null,null,null,null,null,null,null,null,null,null,null,null,null,null,null,null,null,null,null,null,null,null,null,null,null,null,null,null,null,null,null,null,null,null,null,null,null,null,null,""]
[null,null,null,null,null,null,null,null,null,null,null,null,null,null,null,null,null,null,null,null,null,null,null,null,null,null,null,null,null,null,null,null,null,null,null,null,null,null,null,null,null,null,null,"本体価格計（税　抜）",null,null,null,null,null,null,null,null,null,null,null,null,{"$f":"IF(BW23=BW86,BW23,IF(BW86=0,BW23,\"\"))","v":0}]
[null,null,null,null,null,null,null,null,null,null,null,null,null,null,null,null,null,null,null,null,null,null,null,null,null,null,null,null,null,null,null,null,null,null,null,null,null,null,null,null,null,null,null,"消費税等（円未満切捨）",null,null,null,null,null,null,null,null,null,null,null,null,{"$f":"IF(AND(BW27=0,BW24=0),\"\",IF(BW27=BW90,BW27,IF(BW90=0,BW27,\"\")))","v":""}]
[null,null,null,null,null,null,null,null,null,null,null,null,null,null,null,null,null,null,null,null,null,null,null,null,null,null,null,null,null,null,null,null,null,null,null,null,null,null,null,null,null,null,null,"合　　　計",null,null,null,null,null,null,null,null,null,null,null,null,{"$f":"IFERROR(BE30+BE31,\"\")","v":""}]
[]
[]
[null,null,null,null,null,null,null,null,null,null,null,null,null,null,null,null,null,null,"支払場所",null,null,null,null,null,null,null,null,null,null,null,null,null,null,null,null,null,null,null,null,null,null,null,null,null,null,null,null,"取引先コード",null,null,null,null,null,null,null,null,{"$f":"IFERROR(MID($T$6,1,1),\"\")","v":""},{"$f":"IFERROR(MID($T$6,2,1),\"\")","v":""},{"$f":"IFERROR(MID($T$6,3,1),\"\")","v":""},{"$f":"IFERROR(MID($T$6,4,1),\"\")","v":""},{"$f":"IFERROR(MID($T$6,5,1),\"\")","v":""},{"$f":"IFERROR(MID($T$6,6,1),\"\")","v":""}]
[]
[null,null,null,null,null,null,null,null,null,null,null,null,null,null,null,null,null,null,"支払月",null,null,null,null,null,null,null,null,null,null,null,null,null,null,null,null,null,null,null,null,null,null,null,null,null,null,null,null,"請求番号",null,null,null,null,null,null,null,null,{"$f":"IF(AN6=\"\",\"\",IF(AN6*1<10,0,MID(AN6,1,1)))","v":""},{"$f":"IF(AN6=\"\",\"\",IF(AN6<10,MID(AN6,1,1),(MID(AN6,2,1))))","v":""}]
[]
[null,null,null,null,null,null,null,null,null,null,null,null,null,null,null,null,null,null,"伝票番号",null,null,null,null,null,null,null,null,null,null,null,null,null,"-",null,null,null,null,null,null,null,null,null,null,null,null,null,null,"査定金額",null,null,null,null,null,null,null,null,null,null,null,null,null,null,null,null,null,null,null,null,null,"円"]
[]
[null,null,null,null,null,null,null,null,null,null,null,null,null,null,null,null,null,"科　　　目",null,null,null,null,"工事名・部門・立替先",null,null,null,null,null,null,null,null,null,null,null,null,null,null,null,null,"項　　　目",null,null,null,null,null,"該当費目\nに〇印",null,null,"摘　　　　　　　　　　要"]
[null,null,null,null,null,null,null,null,null,null,null,null,null,null,null,null,null,"コ　ー　ド",null,null,null,null,"コ　ー　ド",null,null,null,null,null,null,null,null,null,null,null,null,null,null,null,null,"コ　ー　ド",null,null,null,null,null,null,null,null,"　　内　訳　金　額　　円",null,null,null,null,null,null,null,null,null,null,null,null,null,null,"税 区 分"]
[null,null,null,null,null,null,null,null,null,null,null,null,null,null,null,null,null,null,null,null,null,null,null,null,null,null,null,null,null,null,null,null,null,null,null,null,null,null,null,null,null,null,null,null,null,"材・労・外・経"]
[null,null,null,null,null,null,null,null,null,null,null,null,null,null,null,null,null,null,null,null,null,null,null,null,null,null,null,null,null,null,null,null,null,null,null,null,null,null,null,null,null,null,null,null,null,"１・２・３・４"]
[null,null,null,null,null,null,null,null,null,null,null,null,null,null,null,null,null,null,null,null,null,null,null,null,null,null,null,null,null,null,null,null,null,null,null,null,null,null,null,null,null,null,null,null,null,"材・労・外・経"]
[null,null,null,null,null,null,null,null,null,null,null,null,null,null,null,null,null,null,null,null,null,null,null,null,null,null,null,null,null,null,null,null,null,null,null,null,null,null,null,null,null,null,null,null,null,"１・２・３・４"]
[null,null,null,null,null,null,null,null,null,null,null,null,null,null,null,null,null,null,null,null,null,null,null,null,null,null,null,null,null,null,null,null,null,null,null,null,null,null,null,null,null,null,null,null,null,"材・労・外・経"]
[null,null,null,null,null,null,null,null,null,null,null,null,null,null,null,null,null,null,null,null,null,null,null,null,null,null,null,null,null,null,null,null,null,null,null,null,null,null,null,null,null,null,null,null,null,"１・２・３・４"]
[null,null,null,null,null,null,null,null,null,null,null,null,null,null,null,null,null,null,null,null,null,null,null,null,null,null,null,null,null,null,null,null,null,null,null,null,null,null,null,null,null,null,null,null,null,"材・労・外・経"]
[null,null,null,null,null,null,null,null,null,null,null,null,null,null,null,null,null,null,null,null,null,null,null,null,null,null,null,null,null,null,null,null,null,null,null,null,null,null,null,null,null,null,null,null,null,"１・２・３・４"]
[null,null,null,null,null,null,null,null,null,null,null,null,null,null,null,null,null,null,null,null,null,null,null,null,null,null,null,null,null,null,null,null,null,null,null,null,null,null,null,null,null,null,null,null,null,"材・労・外・経"]
[null,null,null,null,null,null,null,null,null,null,null,null,null,null,null,null,null,null,null,null,null,null,null,null,null,null,null,null,null,null,null,null,null,null,null,null,null,null,null,null,null,null,null,null,null,"１・２・３・４"]
[null,null,null,null,null,null,null,null,null,null,null,null,null,null,null,null,null,null,null,null,null,null,null,null,null,null,null,null,null,null,null,null,null,null,null,null,null,null,null,null,null,null,null,null,null,"材・労・外・経"]
[null,null,null,null,null,null,null,null,null,null,null,null,null,null,null,null,null,null,null,null,null,null,null,null,null,null,null,null,null,null,null,null,null,null,null,null,null,null,null,null,null,null,null,null,null,"１・２・３・４"]
[]
[null,null,null,null,null,null,null,null,null,null,null,null,null,null,null,null,null,"消 費 税 等",null,null,null,null,null,null,null,null,null,null,null,null,null,null,null,null,null,null,null,null,null,null,null,"経　理",null,null,null,"コーディ\n　　ング",null,null,null,null,null,"検 印",null,null,null,null,null,null,null,null,null,null,null,null,null,"担　当"]
[null,null,null,null,null,null,null,null,null,null,null,null,null,null,null,null,null,"2020.12.10改訂版",null,null,null,null,null,null,null,null,null,null,null,null,null,null,null,null,null,null,null,null,"（円未満切捨）"]
[]
[null,null,null,null,null,null,null,null,null,null,null,null,null,null,null,null,"請　求　内　訳　書　（非 契 約 用）"]
[null,null,null,null,null,null,null,null,null,null,null,null,null,null,null,null,null,null,null,null,null,null,null,null,null,null,null,null,"　御 中"]
[null,null,null,null,null,null,null,null,null,null,null,null,null,null,null,null,null,"月 日",null,"品 名 又 は 摘 要",null,null,null,null,null,null,null,null,null,null,null,null,null,null,null,null,null,null,null,null,null,null,null,"数 量",null,null,null,"単位",null,null,null,null,"単 価",null,null,null,"金額（税抜）",null,null,null,null,null,"消費税率"]
[null,null,null,null,null,null,null,null,null,null,null,null,null,null,null,null,null,null,null,null,null,null,null,null,null,null,null,null,null,null,null,null,null,null,null,null,null,null,null,null,null,null,null,null,null,null,null,null,null,null,null,null,null,null,null,null,{"$f":"IFERROR(IF(AR62*BA62=0,\"\",ROUNDDOWN(AR62*BA62,0)),\"\")","v":""}]
[null,null,null,null,null,null,null,null,null,null,null,null,null,null,null,null,null,null,null,null,null,null,null,null,null,null,null,null,null,null,null,null,null,null,null,null,null,null,null,null,null,null,null,null,null,null,null,null,null,null,null,null,null,null,null,null,{"$f":"IFERROR(IF(AR63*BA63=0,\"\",ROUNDDOWN(AR63*BA63,0)),\"\")","v":""}]
[null,null,null,null,null,null,null,null,null,null,null,null,null,null,null,null,null,null,null,null,null,null,null,null,null,null,null,null,null,null,null,null,null,null,null,null,null,null,null,null,null,null,null,null,null,null,null,null,null,null,null,null,null,null,null,null,""]
[null,null,null,null,null,null,null,null,null,null,null,null,null,null,null,null,null,null,null,null,null,null,null,null,null,null,null,null,null,null,null,null,null,null,null,null,null,null,null,null,null,null,null,null,null,null,null,null,null,null,null,null,null,null,null,null,""]
[null,null,null,null,null,null,null,null,null,null,null,null,null,null,null,null,null,null,null,null,null,null,null,null,null,null,null,null,null,null,null,null,null,null,null,null,null,null,null,null,null,null,null,null,null,null,null,null,null,null,null,null,null,null,null,null,""]
[null,null,null,null,null,null,null,null,null,null,null,null,null,null,null,null,null,null,null,null,null,null,null,null,null,null,null,null,null,null,null,null,null,null,null,null,null,null,null,null,null,null,null,null,null,null,null,null,null,null,null,null,null,null,null,null,""]
[null,null,null,null,null,null,null,null,null,null,null,null,null,null,null,null,null,null,null,null,null,null,null,null,null,null,null,null,null,null,null,null,null,null,null,null,null,null,null,null,null,null,null,null,null,null,null,null,null,null,null,null,null,null,null,null,""]
[null,null,null,null,null,null,null,null,null,null,null,null,null,null,null,null,null,null,null,null,null,null,null,null,null,null,null,null,null,null,null,null,null,null,null,null,null,null,null,null,null,null,null,null,null,null,null,null,null,null,null,null,null,null,null,null,""]
[null,null,null,null,null,null,null,null,null,null,null,null,null,null,null,null,null,null,null,null,null,null,null,null,null,null,null,null,null,null,null,null,null,null,null,null,null,null,null,null,null,null,null,null,null,null,null,null,null,null,null,null,null,null,null,null,""]
[null,null,null,null,null,null,null,null,null,null,null,null,null,null,null,null,null,null,null,null,null,null,null,null,null,null,null,null,null,null,null,null,null,null,null,null,null,null,null,null,null,null,null,null,null,null,null,null,null,null,null,null,null,null,null,null,""]
[null,null,null,null,null,null,null,null,null,null,null,null,null,null,null,null,null,null,null,null,null,null,null,null,null,null,null,null,null,null,null,null,null,null,null,null,null,null,null,null,null,null,null,null,null,null,null,null,null,null,null,null,null,null,null,null,""]
[null,null,null,null,null,null,null,null,null,null,null,null,null,null,null,null,null,null,null,null,null,null,null,null,null,null,null,null,null,null,null,null,null,null,null,null,null,null,null,null,null,null,null,null,null,null,null,null,null,null,null,null,null,null,null,null,""]
[null,null,null,null,null,null,null,null,null,null,null,null,null,null,null,null,null,null,null,null,null,null,null,null,null,null,null,null,null,null,null,null,null,null,null,null,null,null,null,null,null,null,null,null,null,null,null,null,null,null,null,null,null,null,null,null,""]
[null,null,null,null,null,null,null,null,null,null,null,null,null,null,null,null,null,null,null,null,null,null,null,null,null,null,null,null,null,null,null,null,null,null,null,null,null,null,null,null,null,null,null,null,null,null,null,null,null,null,null,null,null,null,null,null,""]
[null,null,null,null,null,null,null,null,null,null,null,null,null,null,null,null,null,null,null,null,null,null,null,null,null,null,null,null,null,null,null,null,null,null,null,null,null,null,null,null,null,null,null,null,null,null,null,null,null,null,null,null,null,null,null,null,""]
[null,null,null,null,null,null,null,null,null,null,null,null,null,null,null,null,null,null,null,null,null,null,null,null,null,null,null,null,null,null,null,null,null,null,null,null,null,null,null,null,null,null,null,null,null,null,null,null,null,null,null,null,null,null,null,null,""]
[null,null,null,null,null,null,null,null,null,null,null,null,null,null,null,null,null,null,null,null,null,null,null,null,null,null,null,null,null,null,null,null,null,null,null,null,null,null,null,null,null,null,null,null,null,null,null,null,null,null,null,null,null,null,null,null,""]
[null,null,null,null,null,null,null,null,null,null,null,null,null,null,null,null,null,null,null,null,null,null,null,null,null,null,null,null,null,null,null,null,null,null,null,null,null,null,null,null,null,null,null,null,null,null,null,null,null,null,null,null,null,null,null,null,""]
[null,null,null,null,null,null,null,null,null,null,null,null,null,null,null,null,null,null,null,null,null,null,null,null,null,null,null,null,null,null,null,null,null,null,null,null,null,null,null,null,null,null,null,null,null,null,null,null,null,null,null,null,null,null,null,null,""]
[null,null,null,null,null,null,null,null,null,null,null,null,null,null,null,null,null,null,null,null,null,null,null,null,null,null,null,null,null,null,null,null,null,null,null,null,null,null,null,null,null,null,null,null,null,null,null,null,null,null,null,null,null,null,null,null,""]
[null,null,null,null,null,null,null,null,null,null,null,null,null,null,null,null,null,null,null,null,null,null,null,null,null,null,null,null,null,null,null,null,null,null,null,null,null,null,null,null,null,null,null,null,null,null,null,null,null,null,null,null,null,null,null,null,""]
[null,null,null,null,null,null,null,null,null,null,null,null,null,null,null,null,null,null,null,null,null,null,null,null,null,null,null,null,null,null,null,null,null,null,null,null,null,null,null,null,null,null,null,null,null,null,null,null,null,null,null,null,null,null,null,null,""]
[null,null,null,null,null,null,null,null,null,null,null,null,null,null,null,null,null,null,null,null,null,null,null,null,null,null,null,null,null,null,null,null,null,null,null,null,null,null,null,null,null,null,null,null,null,null,null,null,null,null,null,null,null,null,null,null,""]
[null,null,null,null,null,null,null,null,null,null,null,null,null,null,null,null,null,null,null,null,null,null,null,null,null,null,null,null,null,null,null,null,null,null,null,null,null,null,null,null,null,null,null,null,null,null,null,null,null,null,null,null,null,null,null,null,""]
[null,null,null,null,null,null,null,null,null,null,null,null,null,null,null,null,null,null,null,null,null,null,null,null,null,null,null,null,null,null,null,null,null,null,null,null,null,null,null,null,null,null,null,null,null,null,null,null,null,null,null,null,null,null,null,null,"",null,null,null,null,null,null,null,null,null,null,null,null,null,null,null,null,"本体価格計",{"$f":"SUM(BE62:BJ89)","v":0}]
[null,null,null,null,null,null,null,null,null,null,null,null,null,null,null,null,null,null,null,null,null,null,null,null,null,null,null,null,null,null,null,null,null,null,null,null,null,null,null,null,null,null,null,null,null,null,null,null,null,null,null,null,null,null,null,null,"",null,null,null,null,null,null,null,null,null,null,null,null,null,null,null,null,"非課税計",{"$f":"SUMIF(BK62:BR89,\"非課税\",BE62:BJ89)","v":0}]
[null,null,null,null,null,null,null,null,null,null,null,null,null,null,null,null,null,null,null,null,null,null,null,null,null,null,null,null,null,null,null,null,null,null,null,null,null,null,null,null,null,null,null,null,null,null,null,null,null,null,null,null,null,null,null,null,"",null,null,null,null,null,null,null,null,null,null,null,null,null,null,null,null,"8％計",{"$f":"SUMIF(BK62:BR89,\"軽減8%\",BE62:BJ89)","v":0}]
[null,null,null,null,null,null,null,null,null,null,null,null,null,null,null,null,null,null,null,null,null,null,null,null,null,null,null,null,null,null,null,null,null,null,null,null,null,null,null,null,null,null,null,null,null,null,null,null,null,null,null,null,null,null,null,null,"",null,null,null,null,null,null,null,null,null,null,null,null,null,null,null,null,"10％計",{"$f":"SUMIF(BK62:BR89,\"10%\",BE62:BJ89)+SUMIF(BK62:BR89,\"\",BE62:BJ89)","v":0}]
[null,null,null,null,null,null,null,null,null,null,null,null,null,null,null,null,null,null,null,null,null,null,null,null,null,null,null,null,null,null,null,null,null,null,null,null,null,null,null,null,null,null,null,"本体価格計（税　抜）",null,null,null,null,null,null,null,null,null,null,null,null,{"$f":"IF(BW86=0,\"\",IF(BW23=BW86,BW23,BW23+BW86))","v":""},null,null,null,null,null,null,null,null,null,null,null,null,null,null,null,null,"消費税計",{"$f":"ROUNDDOWN(BW88*0.08,0)+ROUNDDOWN(BW89*0.1,0)+BW87*0","v":0}]
[null,null,null,null,null,null,null,null,null,null,null,null,null,null,null,null,null,null,null,null,null,null,null,null,null,null,null,null,null,null,null,null,null,null,null,null,null,null,null,null,null,null,null,"消費税等（円未満切捨）",null,null,null,null,null,null,null,null,null,null,null,null,{"$f":"IF(BW90=0,\"\",IF(BW27=BW90,BW27,BW27+BW90))","v":""}]
[null,null,null,null,null,null,null,null,null,null,null,null,null,null,null,null,null,null,null,null,null,null,null,null,null,null,null,null,null,null,null,null,null,null,null,null,null,null,null,null,null,null,null,"合　　　計",null,null,null,null,null,null,null,null,null,null,null,null,{"$f":"IFERROR(BE90+BE91,\"\")","v":""}]